bitfinex/quotes_SOLUSD_20211001
["timestamp","ask_amount","ask_price","bid_price","bid_amount"]
[1633057038029,3.01,139.38,139.35,4.15275504]
[1633057038828,3.01,139.38,139.36,4.15258452]
[1633057039027,3.01,139.38,139.37,4.14785411]
[1633057039329,3.01,139.41,139.37,4.14785411]
[1633057039730,3.01,139.41,139.38,4.14290827]
[1633057039928,3.01,139.41,139.39,4.13443296]
[1633057040328,6.01512177,139.43,139.4,4.10113584]
[1633057040528,6.01512177,139.43,139.42,4.09006791]
[1633057040928,6.01512177,139.43,139.41,4.10467742]
[1633057041128,6.01512177,139.43,139.4,4.13333995]
[1633057041530,6.01512177,139.43,139.39,4.1076182]
[1633057041734,6.01512177,139.43,139.4,4.09624828]
[1633057043131,6.01512177,139.43,139.4,12.40318422]
[1633057043531,6.01512177,139.43,139.41,4.07782814]
[1633057044434,6.01512177,139.43,139.42,4.05797203]
[1633057045035,3.00512177,139.43,139.41,4.02694349]
[1633057045235,3.01,139.46,139.43,3.27781888]
[1633057045434,3.01,139.46,139.44,8.30467066]
[1633057045636,3.01,139.46,139.45,19.84533616]
[1633057046235,3.01,139.46,139.43,27.11446786]
[1633057046635,3.01,139.46,139.43,23.09081888]
[1633057046836,3.01,139.46,139.43,3.27781888]
[1633057047438,78.1561,139.48,139.44,8.3048839]
[1633057048039,78.1561,139.48,139.43,3.27781888]
[1633057048236,83.79152961,139.48,139.43,3.27781888]
[1633057049439,78.1561,139.48,139.43,3.27781888]
[1633057051038,78.1561,139.48,139.44,8.30455239]
[1633057051238,78.1561,139.48,139.43,3.27781888]
[1633057051440,0.77467935,139.49,139.44,8.30453337]
[1633057051840,3.01,139.5,139.43,3.27781888]
[1633057052240,8.64542961,139.5,139.43,3.27781888]
[1633057052840,3.01,139.5,139.43,3.27781888]
[1633057055944,3.01,139.5,139.43,6.28781888]
[1633057059344,3.01,139.5,139.44,8.30439906]
[1633057060946,3.01,139.5,139.44,12.38553889]
[1633057065046,3.01,139.5,139.45,4.14666421]
[1633057067849,76.2591,139.53,139.46,4.12616043]
[1633057068054,76.2591,139.53,139.46,12.42922282]
[1633057069651,73.2491,139.53,139.47,3.01]
[1633057069852,73.2491,139.53,139.49,4.0815304]
[1633057070051,3.01,139.55,139.49,4.0815304]
[1633057071658,3.01,139.57,139.49,7.0915304]
[1633057071854,3.01,139.57,139.5,8.30134798]
[1633057072454,24.68583628,139.56,139.5,8.30134798]
[1633057074258,8.64542961,139.57,139.5,8.30134798]
[1633057074657,8.64542961,139.57,139.5,12.38004005]
[1633057075257,31.92426386,139.57,139.5,12.38004005]
[1633057075959,31.92426386,139.57,139.5,8.30134798]
[1633057076159,56.75876425,139.57,139.5,8.30134798]
[1633057076358,56.75876425,139.57,139.49,3.01]
[1633057076559,74.35292158,139.57,139.49,3.01]
[1633057077158,74.35292158,139.57,139.48,4.08763151]
[1633057077358,74.35292158,139.57,139.48,12.38992411]
[1633057077759,74.35292158,139.57,139.48,8.3022926]
[1633057082466,74.35292158,139.57,139.46,12.42969252]
[1633057082862,74.35292158,139.57,139.47,4.12218985]
[1633057083261,74.35292158,139.57,139.46,12.42972348]
[1633057084963,74.35292158,139.57,139.48,4.11707058]
[1633057089070,58.41092158,139.57,139.48,4.11707058]
[1633057093175,58.41092158,139.57,139.47,4.14365582]
[1633057093372,9.47998696,139.56,139.47,4.14365582]
[1633057093573,3.01,139.55,139.47,4.14365582]
[1633057093773,22.07423437,139.54,139.47,4.14365582]
[1633057093973,3.01,139.53,139.47,4.14365582]
[1633057094379,8.64542961,139.53,139.47,4.14365582]
[1633057094576,81.56632961,139.53,139.47,4.14365582]
[1633057094984,75.9309,139.53,139.47,4.14365582]
[1633057095177,75.9309,139.53,139.48,4.11867312]
[1633057095377,81.56632961,139.53,139.48,4.11867312]
[1633057095579,81.56632961,139.53,139.47,4.12244915]
[1633057095779,94.3029,139.53,139.48,4.10411069]
[1633057096377,94.3029,139.53,139.49,4.08475577]
[1633057096578,94.3029,139.53,139.48,4.08435715]
[1633057096780,94.3029,139.53,139.51,2.02943651]
[1633057096977,75.9309,139.53,139.51,2.02943651]
[1633057100178,3.01,139.53,139.51,2.02943651]
[1633057101480,26.93023585,139.52,139.51,2.02943651]
[1633057101681,17.539,139.52,139.51,2.02943651]
[1633057102280,17.539,139.52,139.48,12.38730494]
[1633057102480,17.539,139.52,139.49,3.90225134]
[1633057103180,29.15607987,139.55,139.49,3.90225134]
[1633057103386,29.15607987,139.55,139.52,1.96923463]
[1633057104387,29.15607987,139.55,139.53,1.96692751]
[1633057104583,29.15607987,139.55,139.52,1.96187838]
[1633057105085,29.15607987,139.55,139.53,1.95764355]
[1633057105285,26.14607987,139.55,139.53,1.95764355]
[1633057105486,31.78150948,139.55,139.52,1.96209794]
[1633057105685,58.27050948,139.55,139.52,1.96209794]
[1633057105884,52.63507987,139.55,139.52,1.96209794]
[1633057107789,52.63507987,139.55,139.53,1.97171493]
[1633057108787,52.63507987,139.55,139.52,1.98904714]
[1633057110989,52.63507987,139.55,139.53,1.98084452]
[1633057112193,52.63507987,139.55,139.52,1.98258409]
[1633057115993,52.63507987,139.55,139.53,1.9813518]
[1633057116193,52.63507987,139.55,139.52,1.98274479]
[1633057118499,52.63507987,139.55,139.53,1.97847344]
[1633057118698,58.27050948,139.55,139.52,1.98324148]
[1633057118898,58.27050948,139.55,139.51,1.98790817]
[1633057119301,58.27050948,139.55,139.52,1.9804126]
[1633057119501,58.27050948,139.55,139.51,1.98450548]
[1633057123230,73.27676129,139.55,139.51,1.98450548]
[1633057123428,96.82988898,139.55,139.51,1.98450548]
[1633057123830,96.82988898,139.55,139.51,5.48e-06]
[1633057124031,121.6506058,139.55,139.47,3.9577691]
[1633057126234,151.6506058,139.55,139.47,3.9577691]
[1633057126434,181.6506058,139.55,139.47,3.9577691]
[1633057126634,30.0,139.53,139.47,3.9577691]
[1633057126836,3.01,139.52,139.47,3.9577691]
[1633057127438,28.51642961,139.52,139.44,14.24022076]
[1633057127636,79.2781,139.51,139.41,0.02088]
[1633057127837,3.01,139.5,139.4,18.06355919]
[1633057128039,8.64542961,139.5,139.38,17.72445983]
[1633057128239,3.27781888,139.43,139.38,3.01]
[1633057128438,21.05881888,139.43,139.37,14.78166975]
[1633057128638,29.34878105,139.42,139.37,14.76078975]
[1633057128840,29.34878105,139.42,139.36,17.83465081]
[1633057129440,21.05881888,139.43,139.36,17.83465081]
[1633057131541,21.05881888,139.43,139.36,3.01]
[1633057134943,3.01,139.42,139.34,3.01]
[1633057135743,29.67419059,139.41,139.34,3.01]
[1633057135941,32.68419059,139.41,139.34,3.01]
[1633057137545,32.68419059,139.41,139.31,15.05180459]
[1633057137752,5.63542961,139.4,139.31,15.03092459]
[1633057137949,3.01,139.39,139.29,18.17853664]
[1633057138146,79.8478,139.39,139.29,18.17853664]
[1633057138346,79.8478,139.39,139.28,109.6997]
[1633057138545,29.03505197,139.38,139.28,109.6997]
[1633057138746,3.01,139.37,139.28,109.6997]
[1633057138946,21.111,139.37,139.28,109.6997]
[1633057139750,21.111,139.37,139.27,3.01]
[1633057140149,21.111,139.37,139.27,15.6877657]
[1633057140555,3.01,139.37,139.27,15.6877657]
[1633057141354,23.126,139.37,139.27,15.6877657]
[1633057141953,23.126,139.37,139.27,15.1877657]
[1633057144456,23.126,139.37,139.27,2.51]
[1633057147056,23.126,139.37,139.28,22.58200603]
[1633057147855,23.126,139.37,139.28,25.59200603]
[1633057149757,23.126,139.37,139.28,25.09200603]
[1633057152558,23.126,139.37,139.28,3.01]
[1633057153759,23.126,139.37,139.28,2.51]
[1633057164565,28.76142961,139.37,139.28,2.51]
[1633057166670,28.76142961,139.37,139.29,12.49156469]
[1633057170272,28.76142961,139.37,139.28,2.51]
[1633057171473,28.76142961,139.37,139.28,17.69568443]
[1633057174778,28.76142961,139.37,139.28,17.19568443]
[1633057178184,28.76142961,139.37,139.28,15.18568443]
[1633057178380,28.76142961,139.37,139.26,13.39748409]
[1633057179780,28.76142961,139.37,139.26,3.01]
[1633057183991,28.76142961,139.37,139.26,13.39709032]
[1633057187595,28.76142961,139.37,139.32,6.23273169]
[1633057188195,44.48094986,139.37,139.32,6.23273169]
[1633057188794,104.48094986,139.37,139.32,6.23273169]
[1633057190498,44.48094986,139.37,139.32,6.23273169]
[1633057190699,104.48094986,139.37,139.32,6.23273169]
[1633057191798,44.48094986,139.37,139.32,6.23273169]
[1633057193201,74.48094986,139.37,139.32,6.23273169]
[1633057193597,104.48094986,139.37,139.32,6.23273169]
[1633057194099,102.91504986,139.37,139.32,6.23273169]
[1633057199503,102.91504986,139.37,139.31,6.23320524]
[1633057200605,102.91504986,139.37,139.32,6.23315151]
[1633057201204,22.79904986,139.37,139.32,6.23315151]
[1633057201407,485.62027698,139.39,139.37,8.19956546]
[1633057201607,408.78247698,139.39,139.37,8.19956546]
[1633057201806,60.0,139.41,139.37,24.49456546]
[1633057202006,60.0,139.41,139.38,15.57139174]
[1633057202210,60.0,139.41,139.39,16.81155253]
[1633057202604,30.0,139.41,139.39,19.82155253]
[1633057202805,3.27781888,139.43,139.39,19.82155253]
[1633057203206,3.27781888,139.43,139.41,6.2248096]
[1633057203407,3.27781888,139.43,139.41,9.2348096]
[1633057204208,3.27781888,139.43,139.42,22.54562987]
[1633057204609,3.27781888,139.43,139.42,25.55562987]
[1633057205411,3.27781888,139.43,139.42,3.01]
[1633057205607,3.27781888,139.43,139.41,6.2248096]
[1633057205812,26.60681888,139.43,139.4,3.01]
[1633057206010,26.60681888,139.43,139.38,3.01]
[1633057206409,28.71087592,139.42,139.38,3.01]
[1633057206813,34.34630553,139.42,139.37,8.19956546]
[1633057207007,3.01,139.41,139.37,6.546e-05]
[1633057207209,3.01,139.41,139.32,352.56921447]
[1633057207407,26.16291858,139.39,139.32,352.54833447]
[1633057207608,3.01,139.38,139.32,352.54833447]
[1633057207808,8.64542961,139.38,139.32,352.54833447]
[1633057208011,5.63542961,139.37,139.32,6.22349064]
[1633057208210,8.64542961,139.37,139.3,6.22417888]
[1633057208415,3.01,139.37,139.3,6.22417888]
[1633057208609,23.2362577,139.36,139.3,6.22417888]
[1633057208812,42.9132577,139.36,139.29,9.23495642]
[1633057211012,42.9132577,139.36,139.29,3.01]
[1633057211212,3.01,139.37,139.29,3.01]
[1633057211417,3.01,139.39,139.29,3.01]
[1633057212016,3.01,139.39,139.3,6.22428098]
[1633057212214,29.48093418,139.38,139.31,3.01]
[1633057212616,3.01,139.37,139.3,6.22428098]
[1633057213017,3.01,139.37,139.29,9.23498895]
[1633057214823,29.48093418,139.38,139.29,9.23498895]
[1633057215424,29.48093418,139.38,139.3,6.2243997]
[1633057215643,29.48093418,139.38,139.31,3.01]
[1633057216644,3.01,139.39,139.31,3.01]
[1633057216846,73.3955,139.4,139.31,3.01]
[1633057217044,73.3955,139.4,139.32,5.63542961]
[1633057217248,3.27781888,139.43,139.33,3.01]
[1633057217445,3.27781888,139.43,139.37,4.14846105]
[1633057217644,26.66060633,139.43,139.36,4.14870065]
[1633057217844,26.66060633,139.43,139.36,12.45746745]
[1633057219848,3.27781888,139.43,139.36,12.45746745]
[1633057220043,3.27781888,139.43,139.37,4.14841288]
[1633057220444,3.01,139.42,139.37,4.14841288]
[1633057220645,3.01,139.42,139.38,4.14823455]
[1633057221244,3.01,139.42,139.37,4.14847819]
[1633057221446,3.01,139.42,139.36,4.14869947]
[1633057221645,3.01,139.42,139.37,4.14854032]
[1633057222847,3.01,139.42,139.38,4.14836698]
[1633057223746,3.01,139.42,139.39,4.14785216]
[1633057223949,3.01,139.42,139.39,12.45482315]
[1633057224146,3.27781888,139.43,139.4,4.14758221]
[1633057224950,3.27781888,139.43,139.41,4.14724468]
[1633057225151,3.27781888,139.43,139.41,12.45314548]
[1633057225348,3.01,139.47,139.43,3.27781888]
[1633057225550,3.01,139.47,139.44,8.30480744]
[1633057225749,3.01,139.49,139.44,8.30480744]
[1633057225950,3.01,139.49,139.44,12.45088713]
[1633057226151,60.0,139.5,139.45,4.14592693]
[1633057226553,60.0,139.5,139.45,18.99392693]
[1633057226850,60.0,139.5,139.46,12.4271427]
[1633057227250,60.0,139.5,139.47,4.10974729]
[1633057227458,30.0,139.5,139.46,12.41095865]
[1633057227851,3.01,139.53,139.46,8.30266146]
[1633057231056,3.01,139.53,139.46,12.40665126]
[1633057232457,3.01,139.53,139.46,8.30266146]
[1633057235065,3.01,139.55,139.47,3.01]
[1633057236262,33.08917903,139.57,139.47,3.01]
[1633057236465,33.08917903,139.57,139.47,26.795]
[1633057237064,3.01,139.57,139.47,26.795]
[1633057237663,3.01,139.59,139.47,26.795]
[1633057238561,3.01,139.59,139.47,32.43042961]
[1633057239165,82.6879,139.61,139.47,107.60042961]
[1633057239363,82.6879,139.61,139.48,47.45010171]
[1633057239563,79.6779,139.61,139.5,75.17]
[1633057239765,79.6779,139.61,139.51,11.30804958]
[1633057239965,79.6779,139.61,139.51,8.64542961]
[1633057240370,3.01,139.64,139.51,3.01]
[1633057240564,76.6344,139.64,139.51,20.895]
[1633057241365,3.01,139.64,139.52,40.76542961]
[1633057241569,25.30198427,139.66,139.53,3.01]
[1633057242568,3.01,139.66,139.53,3.01]
[1633057242772,78.7712,139.68,139.54,75.17]
[1633057242973,78.7712,139.68,139.55,3.01]
[1633057243169,78.7712,139.68,139.55,8.64542961]
[1633057243770,75.7612,139.68,139.56,75.17]
[1633057243969,75.7612,139.68,139.57,3.01]
[1633057244169,75.7612,139.68,139.57,21.8473675]
[1633057244571,3.01,139.7,139.57,21.8473675]
[1633057244970,29.81977567,139.69,139.58,1.95429636]
[1633057245169,29.81977567,139.69,139.59,3.01]
[1633057245370,3.01,139.7,139.59,3.01]
[1633057245574,3.01,139.7,139.59,4.95858316]
[1633057246172,81.17212961,139.72,139.6,7.57762029]
[1633057246173,75.5367,139.72,139.6,7.57762029]
[1633057246373,75.5367,139.72,139.61,3.01]
[1633057246572,27.14693853,139.71,139.61,25.14828888]
[1633057246773,75.5367,139.72,139.63,1.91463918]
[1633057246970,3.01,139.74,139.64,3.01]
[1633057247771,33.18593229,139.74,139.64,3.01]
[1633057249773,3.01,139.76,139.64,3.01]
[1633057249972,3.01,139.76,139.65,1.88441548]
[1633057250172,3.01,139.76,139.66,3.01]
[1633057250373,3.01,139.76,139.66,25.096]
[1633057250574,3.01,139.76,139.66,26.97224335]
[1633057250974,28.42521198,139.75,139.66,26.97224335]
[1633057251574,28.42521198,139.75,139.67,1.86283041]
[1633057251773,28.42521198,139.75,139.68,3.01]
[1633057253379,27.42521198,139.75,139.68,3.01]
[1633057255078,3.01,139.74,139.66,3.01]
[1633057255678,3.01,139.74,139.65,1.87180679]
[1633057256078,3.01,139.74,139.66,1.86618082]
[1633057256779,55.0,139.73,139.66,8.082e-05]
[1633057256980,3.01,139.72,139.63,3.01]
[1633057257178,3.01,139.72,139.61,38.14]
[1633057257378,8.64542961,139.72,139.61,38.14]
[1633057257578,8.64542961,139.72,139.62,8.29336286]
[1633057257779,32.95856742,139.71,139.61,35.13]
[1633057257983,75.17,139.69,139.59,3.72681448]
[1633057258179,3.01,139.68,139.59,3.72681448]
[1633057258382,3.01,139.68,139.58,38.29579407]
[1633057258578,3.01,139.68,139.59,8.29498126]
[1633057258788,3.01,139.68,139.59,12.015492]
[1633057258980,22.18208545,139.67,139.59,8.29498126]
[1633057259182,3.01,139.66,139.58,30.0]
[1633057259381,3.01,139.66,139.59,5.33341126]
[1633057259584,3.01,139.66,139.6,8.29483141]
[1633057259981,453.28740449,139.65,139.59,5.33341126]
[1633057260181,3.01,139.64,139.59,5.33341126]
[1633057260382,3.01,139.64,139.58,3.70852368]
[1633057260583,3.01,139.64,139.59,3.73396782]
[1633057260782,3.01,139.64,139.58,3.73039451]
[1633057260984,3.01,139.64,139.57,3.73398139]
[1633057261181,21.678,139.64,139.56,8.29502178]
[1633057261381,25.58769365,139.63,139.56,12.05274749]
[1633057261584,3.01,139.62,139.56,12.05274749]
[1633057261783,3.01,139.62,139.56,4.66684801]
[1633057261982,3.01,139.62,139.57,8.29704765]
[1633057263185,3.01,139.62,139.56,3.7641722]
[1633057263986,21.69292315,139.61,139.56,3.7641722]
[1633057264185,3.01,139.6,139.56,3.7641722]
[1633057264387,3.01,139.6,139.55,3.78119251]
[1633057265388,3.01,139.6,139.56,3.77876862]
[1633057265787,3.01,139.6,139.55,3.7860365]
[1633057266591,3.01,139.6,139.56,3.81570271]
[1633057268191,3.01,139.6,139.55,3.81933672]
[1633057268792,3.01,139.6,139.56,3.82568952]
[1633057271397,3.01,139.6,139.55,3.81330185]
[1633057271994,3.01,139.6,139.54,3.82219921]
[1633057272195,3.01,139.6,139.55,3.81015885]
[1633057273596,3.01,139.6,139.54,12.09797057]
[1633057275497,3.01,139.6,139.54,8.29784441]
[1633057275702,3.01,139.6,139.53,3.80134579]
[1633057276304,3.01,139.6,139.52,3.83242584]
[1633057276501,29.42307861,139.59,139.53,3.81600034]
[1633057276698,3.01,139.58,139.53,3.81600034]
[1633057276898,3.01,139.58,139.52,3.82482185]
[1633057278399,3.01,139.58,139.51,12.10659608]
[1633057280102,3.01,139.58,139.51,8.2982409]
[1633057281504,3.01,139.58,139.51,12.13014781]
[1633057282505,3.01,139.58,139.52,3.82312047]
[1633057282705,3.01,139.58,139.52,12.12208493]
[1633057283304,3.01,139.58,139.53,3.8068961]
[1633057283905,3.01,139.58,139.54,3.8052654]
[1633057284305,3.01,139.58,139.55,3.7812279]
[1633057284505,3.01,139.58,139.56,3.7794266]
[1633057285106,3.01,139.58,139.56,12.07708214]
[1633057285505,3.01,139.58,139.57,3.78410096]
[1633057287506,3.01,139.58,139.56,8.29765554]
[1633057287907,3.01,139.58,139.57,3.7907468]
[1633057288707,3.01,139.58,139.54,5.69384148]
[1633057289911,3.01,139.58,139.55,5.69323726]
[1633057290512,3.01,139.58,139.55,13.99120056]
[1633057290914,3.01,139.58,139.55,8.2979633]
[1633057292117,3.01,139.58,139.55,14.00189874]
[1633057294724,3.01,139.58,139.57,3.79743333]
[1633057297727,3.01,139.58,139.56,3.81367543]
[1633057299528,3.01,139.58,139.57,3.79235522]
[1633057300748,3.01,139.58,139.56,3.80754161]
[1633057301349,27.35364112,139.58,139.56,3.80754161]
[1633057301949,3.01,139.58,139.56,3.80754161]
[1633057302352,3.01,139.58,139.57,3.79615546]
[1633057302549,3.01,139.6,139.57,3.79615546]
[1633057304955,29.80433393,139.6,139.57,3.79615546]
[1633057305153,29.80433393,139.6,139.56,3.81433763]
[1633057305353,29.80433393,139.6,139.57,3.81201771]
[1633057305951,29.80433393,139.6,139.56,3.81736809]
[1633057308053,29.80433393,139.6,139.55,3.82604194]
[1633057309953,8.28982593,139.51,139.48,14.59654603]
[1633057310155,32.65982593,139.51,139.46,0.02088]
[1633057310352,32.65982593,139.51,139.45,0.02088]
[1633057310551,32.65982593,139.51,139.43,6.28781888]
[1633057310752,55.6909971,139.51,139.43,29.89842175]
[1633057310952,32.65982593,139.51,139.44,14.06741453]
[1633057312757,56.63933904,139.51,139.44,14.06741453]
[1633057314355,32.65982593,139.51,139.44,14.06741453]
[1633057314555,11.29982593,139.51,139.44,14.06741453]
[1633057315258,11.29982593,139.51,139.43,6.28781888]
[1633057315456,29.00382593,139.51,139.43,6.28781888]
[1633057316256,52.28069875,139.51,139.43,35.22135191]
[1633057319562,34.57669875,139.51,139.43,35.22135191]
[1633057319762,34.57669875,139.51,139.43,32.21135191]
[1633057319962,34.57669875,139.51,139.43,3.27781888]
[1633057320162,11.29982593,139.51,139.43,3.27781888]
[1633057320365,11.29982593,139.51,139.43,6.28781888]
[1633057320766,11.29982593,139.51,139.43,23.78381888]
[1633057321165,11.29982593,139.51,139.44,21.47461734]
[1633057322766,11.29982593,139.51,139.43,3.27781888]
[1633057323771,11.29982593,139.51,139.43,32.15741796]
[1633057324566,11.29982593,139.51,139.43,3.27781888]
[1633057324770,16.93525554,139.51,139.43,3.27781888]
[1633057325368,73.3376,139.5,139.43,3.27781888]
[1633057325573,27.87823117,139.49,139.43,3.27781888]
[1633057332277,3.01,139.49,139.43,3.27781888]
[1633057333278,33.12998154,139.49,139.43,3.27781888]
[1633057334079,55.73798154,139.49,139.43,3.27781888]
[1633057334880,5.63542961,139.48,139.43,3.27781888]
[1633057335082,24.83133439,139.46,139.43,3.27781888]
[1633057335281,27.84133439,139.46,139.43,3.27781888]
[1633057335480,44.11333439,139.46,139.43,3.27781888]
[1633057338085,27.84133439,139.46,139.43,3.27781888]
[1633057351600,8.64542961,139.46,139.43,1.888e-05]
[1633057355203,3.01,139.46,139.43,1.888e-05]
[1633057355801,8.64542961,139.46,139.43,1.888e-05]
[1633057356905,3.01,139.46,139.43,1.888e-05]
[1633057363515,3.01,139.46,139.43,21.90001888]
[1633057365112,27.05716724,139.46,139.43,21.90001888]
[1633057365710,27.05716724,139.46,139.43,1.888e-05]
[1633057365911,53.63423762,139.46,139.35,3.01]
[1633057366112,53.63423762,139.46,139.35,30.0584722]
[1633057366312,53.63423762,139.46,139.36,13.47613608]
[1633057366513,59.26966723,139.46,139.36,13.47613608]
[1633057367316,59.26966723,139.46,139.35,27.0484722]
[1633057369921,59.26966723,139.46,139.35,33.27511618]
[1633057370318,59.26966723,139.46,139.35,6.22664398]
[1633057370918,134.43966723,139.46,139.35,6.22664398]
[1633057371318,134.43966723,139.46,139.34,6.22692186]
[1633057371518,134.43966723,139.46,139.34,19.70293477]
[1633057374321,161.65929947,139.46,139.34,19.70293477]
[1633057374721,179.60549947,139.46,139.34,19.70293477]
[1633057374920,75.17,139.43,139.34,6.22692186]
[1633057375123,75.17,139.43,139.32,6.22764433]
[1633057375124,3.01,139.42,139.32,6.22764433]
[1633057375322,8.64542961,139.42,139.32,6.22764433]
[1633057375523,29.28388852,139.41,139.32,6.22764433]
[1633057375725,3.01,139.4,139.32,6.22764433]
[1633057376125,8.64542961,139.4,139.31,19.704182]
[1633057377124,8.64542961,139.4,139.38,2.07562032]
[1633057378128,3.01,139.4,139.39,2.07547883]
[1633057378826,3.01,139.4,139.33,16.31284401]
[1633057379227,3.01,139.4,139.39,2.07537787]
[1633057380030,3.01,139.4,139.36,29.08416162]
[1633057385635,3.01,139.4,139.36,35.30975294]
[1633057386437,2.98077683,139.4,139.36,35.30975294]
[1633057388739,2.98077683,139.4,139.37,13.47380767]
[1633057388937,2.98077683,139.4,139.37,19.69925685]
[1633057389941,2.98077683,139.4,139.38,6.22554673]
[1633057390139,2.98077683,139.4,139.39,10.08649295]
[1633057391543,3.01,139.42,139.39,10.08649295]
[1633057394774,3.01,139.44,139.39,10.08649295]
[1633057396475,52.45770262,139.49,139.44,3.01]
[1633057396476,3.01,139.46,139.44,3.01]
[1633057396676,3.01,139.48,139.44,3.01]
[1633057396875,3.01,139.5,139.44,3.01]
[1633057397075,3.01,139.5,139.44,17.14981899]
[1633057397276,3.01,139.5,139.49,2.07406685]
[1633057397674,8.28982593,139.51,139.49,2.07406685]
[1633057398075,8.28982593,139.51,139.5,2.07400017]
[1633057398481,8.28982593,139.51,139.49,2.0740736]
[1633057398677,8.28982593,139.51,139.5,2.07398583]
[1633057398876,8.28982593,139.51,139.49,2.07404914]
[1633057400077,8.28982593,139.51,139.5,2.07356273]
[1633057400479,8.28982593,139.51,139.49,2.07332109]
[1633057400876,8.28982593,139.51,139.5,2.07324351]
[1633057401277,8.28982593,139.51,139.49,2.07297131]
[1633057402281,8.28982593,139.51,139.48,2.07289778]
[1633057402680,8.28982593,139.51,139.49,2.07284944]
[1633057402881,8.28982593,139.51,139.48,2.07291381]
[1633057403782,8.28982593,139.51,139.47,23.52855158]
[1633057403783,8.28982593,139.51,139.49,2.07269336]
[1633057404181,8.28982593,139.51,139.48,2.0726932]
[1633057404582,8.28982593,139.51,139.49,2.07242958]
[1633057405281,8.28982593,139.51,139.5,2.07235794]
[1633057405482,8.28982593,139.51,139.5,17.71446093]
[1633057406080,8.28982593,139.51,139.5,15.64210299]
[1633057406482,8.28982593,139.51,139.5,17.7142597]
[1633057407682,8.28982593,139.51,139.5,2.07215671]
[1633057407883,8.28982593,139.51,139.48,2.07248705]
[1633057408684,8.28982593,139.51,139.47,2.07257801]
[1633057409090,8.28982593,139.51,139.48,2.07256555]
[1633057409884,8.28982593,139.51,139.47,2.07266037]
[1633057411688,8.28982593,139.51,139.48,2.07277854]
[1633057412087,8.28982593,139.51,139.47,2.07282662]
[1633057413085,8.28982593,139.51,139.48,2.0728155]
[1633057413688,8.28982593,139.51,139.47,2.07302984]
[1633057414088,8.28982593,139.51,139.48,2.07287909]
[1633057414290,8.28982593,139.51,139.49,2.07279425]
[1633057414690,8.28982593,139.51,139.48,2.07289979]
[1633057415293,23.78482593,139.51,139.47,2.07308298]
[1633057415489,3.01,139.5,139.47,2.07308298]
[1633057415692,3.01,139.5,139.46,2.07367999]
[1633057416291,3.01,139.5,139.45,2.0737326]
[1633057416498,3.01,139.5,139.46,2.07379162]
[1633057416894,24.7794007,139.5,139.46,2.07379162]
[1633057417093,3.01,139.5,139.46,2.07379162]
[1633057417898,3.01,139.5,139.47,2.07386879]
[1633057419094,3.01,139.5,139.46,2.07414333]
[1633057420394,3.01,139.5,139.47,2.07426286]
[1633057422393,3.01,139.5,139.48,2.07428734]
[1633057422799,8.28982593,139.51,139.48,2.07428734]
[1633057422998,8.28982593,139.51,139.48,18.11628734]
[1633057423194,8.28982593,139.51,139.49,2.07408406]
[1633057423399,8.28982593,139.51,139.5,2.07418755]
[1633057424800,8.28982593,139.51,139.49,21.97722025]
[1633057425199,8.28982593,139.51,139.5,2.07425867]
[1633057425396,8.28982593,139.51,139.49,21.97722025]
[1633057426498,8.28982593,139.51,139.5,8.3030279]
[1633057426698,8.28982593,139.51,139.5,2.07469493]
[1633057433901,8.28982593,139.51,139.47,12.45309749]
[1633057433902,8.28982593,139.51,139.48,2.07506752]
[1633057434103,8.28982593,139.51,139.45,12.45521827]
[1633057434104,3.01,139.5,139.45,8.30508322]
[1633057434302,3.01,139.5,139.44,3.01]
[1633057434500,5.63542961,139.49,139.44,3.01]
[1633057434699,3.01,139.48,139.44,3.01]
[1633057434901,25.284,139.48,139.44,3.01]
[1633057436001,100.8192,139.48,139.44,3.01]
[1633057436404,116.43649926,139.48,139.44,3.01]
[1633057436803,122.07192887,139.48,139.44,3.01]
[1633057437807,116.43649926,139.48,139.44,3.01]
[1633057438003,94.16249926,139.48,139.44,3.01]
[1633057438403,18.62729926,139.48,139.44,3.01]
[1633057442209,3.01,139.48,139.44,3.01]
[1633057443008,11.29982593,139.51,139.45,8.30492925]
[1633057443606,11.29982593,139.51,139.45,31.81849248]
[1633057443806,11.29982593,139.51,139.45,23.51356323]